fUST/lending_fUST_20241029
["ID","MTS","AMOUNT","RATE_DAILY","PERIOD"]
[340969541,1730182243595,-500.0,0.00024125,2]
[340969544,1730182243605,-500.0,0.00024125,2]
[340969547,1730182243615,-500.0,0.00024125,2]
[340969548,1730182243624,-445.25772934,0.00024125,2]
[340969550,1730182243634,-500.0,0.00024125,2]
[340969552,1730182243643,-423.17966938,0.00024125,2]
[340969554,1730182243653,-500.0,0.00024125,2]
[340969556,1730182243662,-275.4642206,0.00024125,2]
[340969558,1730182243672,-500.0,0.00024125,2]
[340969560,1730182243681,-500.0,0.00024125,2]
[340969562,1730182243691,-500.0,0.00024125,2]
[340969564,1730182243700,-589.00535725,0.00024125,2]
[340969566,1730182243709,-500.0,0.00024125,2]
[340969568,1730182243719,-500.0,0.00024125,2]
[340969570,1730182243728,-500.0,0.00024125,2]
[340969572,1730182243739,-500.0,0.00024125,2]
[340969574,1730182243749,-500.0,0.00024125,2]
[340969576,1730182243762,-500.0,0.00024125,2]
[340969579,1730182243772,-500.0,0.00024125,2]
[340969581,1730182243781,-500.0,0.00024125,2]
[340969582,1730182243790,-500.0,0.00024125,2]
[340969584,1730182243799,-500.0,0.00024125,2]
[340969587,1730182243809,-500.0,0.00024125,2]
[340969589,1730182243818,-500.0,0.00024125,2]
[340969591,1730182243827,-500.0,0.00024125,2]
[340969593,1730182243836,-500.0,0.00024125,2]
[340969595,1730182243845,-500.0,0.00024125,2]
[340969597,1730182243854,-500.0,0.00024125,2]
[340969599,1730182243863,-500.0,0.00024125,2]
[340969601,1730182243872,-500.0,0.00024125,2]
[340969603,1730182243881,-500.0,0.00024125,2]
[340969605,1730182243890,-500.0,0.00024125,2]
[340969607,1730182243899,-500.0,0.00024125,2]
[340969609,1730182243909,-500.0,0.00024125,2]
[340969611,1730182243918,-500.0,0.00024125,2]
[340969612,1730182243926,-500.0,0.00024125,2]
[340969615,1730182243936,-500.0,0.00024125,2]
[340969617,1730182243945,-500.0,0.00024125,2]
[340969619,1730182243955,-500.0,0.00024125,2]
[340969621,1730182243964,-500.0,0.00024125,2]
[340969623,1730182243974,-500.0,0.00024125,2]
[340969625,1730182243982,-500.0,0.00024125,2]
[340969627,1730182243993,-500.0,0.00024125,2]
[340969628,1730182244003,-500.0,0.00024125,2]
[340969630,1730182244012,-500.0,0.00024125,2]
[340969632,1730182244021,-182661.258542,0.00024126,3]
[340969634,1730182244031,-87455.1526427,0.00024126,3]
[340969636,1730182244042,-315.5,0.0002413,2]
[340969638,1730182244051,-121774.172361,0.00024136,3]
[340969641,1730182244061,-58303.4350952,0.00024136,3]
[340969642,1730182244070,-58303.4350952,0.00024146,3]
[340969645,1730182244080,-29151.7175476,0.00024156,3]
[340969647,1730182244090,-231.0,0.00024164,2]
[340969649,1730182244100,-3124.36792809,0.00024165,2]
[340969651,1730182244110,-150.52320221,0.00024165,2]
[340969653,1730182244120,-65366.2461841,0.00024166,2]
[340969655,1730182244130,-1002.65075145,0.0002417,2]
[340969657,1730182244141,-500.0,0.00024173,2]
[340969659,1730182244151,-500.0,0.00024173,2]
[340969661,1730182244161,-500.0,0.00024173,2]
[340969663,1730182244170,-500.0,0.00024173,2]
[340969665,1730182244180,-500.70376259,0.00024173,2]
[340969667,1730182244191,-152.63434388,0.00024173,2]
[340969669,1730182244200,-500.0,0.00024173,2]
[340969671,1730182244210,-191.41300461,0.00024173,2]
[340969673,1730182244219,-500.81844554,0.00024173,2]
[340969675,1730182244228,-500.0,0.00024173,2]
[340969677,1730182244237,-504.80913533,0.00024173,2]
[340969679,1730182244246,-631.46172926,0.00024173,2]
[340969681,1730182244255,-500.0,0.00024173,2]
[340969683,1730182244266,-500.0,0.00024173,2]
[340969685,1730182244277,-500.0,0.00024173,2]
[340969687,1730182244287,-500.0,0.00024173,2]
[340969689,1730182244296,-500.0,0.00024173,2]
[340969691,1730182244306,-151.0,0.00024208,7]
[340969693,1730182244316,-274.215266,0.00024208,7]
[340969695,1730182244325,-274.215266,0.00024208,7]
[340969697,1730182244334,-171.955609,0.00024208,7]
[340969699,1730182244344,-249.523747,0.00024208,7]
[340969701,1730182244353,-249.523747,0.00024208,7]
[340969703,1730182244362,-233.649733,0.00024208,7]
[340969705,1730182244373,-233.649733,0.00024208,7]
[340969707,1730182244383,-29151.7175476,0.00024209,3]
[340969709,1730182244392,-159.988,0.00024219,2]
[340969711,1730182244402,-252.69,0.00024219,2]
[340969713,1730182244411,-150.0,0.00024219,2]
[340969715,1730182244421,-763.79305898,0.0002425,2]
[340969717,1730182244430,-151.0,0.0002428,7]
[340969718,1730182244440,-358.757053,0.0002428,7]
[340969720,1730182244452,-358.757053,0.0002428,7]
[340969722,1730182244462,-151.32196,0.0002428,7]
[340969724,1730182244471,-151.0,0.0002428,7]
[340969726,1730182244481,-153.807788,0.0002428,7]
[340969728,1730182244491,-156.816932,0.0002428,7]
[340969730,1730182244501,-151.0,0.0002428,7]
[340969732,1730182244511,-151.0,0.0002428,7]
[340969734,1730182244521,-151.986856,0.0002428,7]
[340969736,1730182244532,-151.0,0.0002428,7]
[340969738,1730182244543,-181.6877064,0.00024356,2]
[340969741,1730182244552,-471.67641092,0.00024361,2]
[340969743,1730182244563,-164.812974,0.000244,5]
[340969745,1730182244572,-156.121294,0.0002441,7]
[340969747,1730182244582,-151.0,0.0002441,7]
[340969749,1730182244591,-358.757053,0.0002441,7]
[340969751,1730182244601,-358.757053,0.0002441,7]
[340969753,1730182244610,-151.0,0.0002441,7]
[340969755,1730182244619,-151.0,0.0002441,7]
[340969757,1730182244630,-151.0,0.0002441,7]
[340969759,1730182244640,-151.0,0.0002441,7]
[340969761,1730182244649,-151.0,0.0002441,7]
[340969763,1730182244658,-226.694772,0.0002441,7]
[340969764,1730182244668,-226.694772,0.0002441,7]
[340969765,1730182244677,-151.0,0.0002441,7]
[340969766,1730182244686,-151.0,0.0002441,7]
[340969767,1730182244696,-151.0,0.0002441,7]
[340969768,1730182244705,-265.984984,0.0002441,7]
[340969769,1730182244714,-151.0,0.0002441,7]
[340969770,1730182244724,-399.705072,0.0002441,7]
[340969771,1730182244733,-151.0,0.0002441,7]
[340969772,1730182244743,-399.705072,0.0002441,7]
[340969773,1730182244752,-96947.95126875,0.0002441,2]
[340969774,1730182244766,-45256.6596388,0.0002441,2]
[340969775,1730182244776,-151.0,0.0002441,7]
[340969776,1730182244787,-151.0,0.0002441,7]
[340969778,1730182244796,-151.0,0.0002441,7]
[340969780,1730182244805,-151.0,0.0002441,7]
[340969782,1730182244815,-152.233632,0.0002441,7]
[340969784,1730182244825,-274.215266,0.0002441,7]
[340969786,1730182244835,-274.215266,0.0002441,7]
[340969788,1730182244845,-249.523747,0.0002441,7]
[340969790,1730182244854,-249.523747,0.0002441,7]
[340969792,1730182244863,-233.649733,0.0002441,7]
[340969794,1730182244874,-233.649733,0.0002441,7]
[340969796,1730182244884,-500.0,0.00024473,2]
[340969798,1730182244893,-315.5,0.00024483,2]
[340969800,1730182244903,-150.112233,0.000245,6]
[340969802,1730182244913,-500.0,0.00024544,7]
[340969804,1730182244922,-150.112233,0.000246,9]
[340969806,1730182244930,-150.112233,0.000246,10]
[340969807,1730182244938,-1000.0,0.00024657,4]
[340969809,1730182244947,-503.69174299,0.00024657,4]
[340969811,1730182244956,-618.1512845,0.00024657,4]
[340969813,1730182244966,-500.0,0.00024657,4]
[340969815,1730182244976,-500.0,0.00024657,4]
[340969817,1730182244985,-186.18186999,0.00024657,4]
[340969819,1730182244996,-500.0,0.00024657,4]
[340969821,1730182245005,-505.65896447,0.00024657,4]
[340969823,1730182245015,-588.68307683,0.00024657,4]
[340969825,1730182245026,-500.0,0.00024657,4]
[340969827,1730182245036,-500.0,0.00024657,4]
[340969829,1730182245045,-503.47447402,0.00024657,4]
[340969831,1730182245055,-505.18757696,0.00024657,4]
[340969833,1730182245065,-500.0,0.00024657,4]
[340969835,1730182245075,-325.65663081,0.00024657,4]
[340969837,1730182245085,-500.0,0.00024657,4]
[340969839,1730182245095,-500.0,0.00024657,4]
[340969841,1730182245106,-505.74164732,0.00024657,4]
[340969843,1730182245116,-500.0,0.00024657,4]
[340969845,1730182245127,-500.0,0.00024657,4]
[340969847,1730182245137,-513.71253298,0.00024657,4]
[340969849,1730182245147,-648.2951159,0.00024657,4]
[340969851,1730182245157,-500.0,0.00024657,4]
[340969853,1730182245167,-633.09,0.00024657,4]
[340969855,1730182245178,-500.0,0.00024657,4]
[340969857,1730182245188,-500.0,0.00024657,4]
[340969860,1730182245198,-500.0,0.00024657,4]
[340969862,1730182245209,-500.0,0.00024657,4]
[340969864,1730182245219,-504.59216936,0.00024657,4]
[340969866,1730182245229,-500.0,0.00024657,4]
[340969868,1730182245240,-500.0,0.00024657,4]
[340969870,1730182245250,-500.0,0.00024657,4]
[340969871,1730182245260,-500.0,0.00024657,4]
[340969874,1730182245269,-795.46,0.00024657,4]
[340969884,1730182245364,-500.0,0.00024657,4]
[340969887,1730182245377,-503.17092122,0.00024657,4]
[340969889,1730182245387,-500.0,0.00024657,4]
[340969891,1730182245398,-500.0,0.00024657,4]
[340969893,1730182245408,-502.01041015,0.00024657,4]
[340969895,1730182245419,-604.48571884,0.00024657,4]
[340969897,1730182245430,-500.0,0.00024657,4]
[340969899,1730182245439,-500.0,0.00024657,4]
[340969901,1730182245449,-500.0,0.00024657,4]
[340969903,1730182245458,-498.97445574,0.00024657,4]
[340969905,1730182245468,-500.0,0.00024657,4]
[340969907,1730182245479,-411.81949937,0.00024657,4]
[340969909,1730182245489,-500.0,0.00024657,4]
[340969911,1730182245498,-500.0,0.00024657,4]
[340969913,1730182245508,-502.93672677,0.00024657,4]
[340969915,1730182245518,-500.0,0.00024657,4]
[340969917,1730182245528,-500.0,0.00024657,2]
[340969919,1730182245538,-500.0,0.00024657,2]
[340969921,1730182245550,-500.0,0.00024657,2]
[340969923,1730182245560,-500.0,0.00024657,2]
[340969925,1730182245570,-500.0,0.00024657,2]
[340969927,1730182245580,-500.0,0.00024657,2]
[340969929,1730182245590,-500.0,0.00024657,2]
[340969931,1730182245600,-449.56659388,0.00024657,2]
[340969933,1730182245609,-645.15,0.00024657,4]
[340969935,1730182245619,-500.0,0.00024657,4]
[340969937,1730182245629,-336.70300482,0.00024657,4]
[340969984,1730182246090,-168.94419134,0.00024657,4]
[340969986,1730182246100,-135.26866039,0.00024657,4]
[340970049,1730182246699,165.0,0.00022,2]
[340970432,1730182319149,172.588396,0.00013973,2]
[340970434,1730182350540,496.0,0.00035488,30]
[340970436,1730182431866,456.299999,0.0003547,120]
[340970578,1730183230153,-176.503452,0.00022222,2]
[340970579,1730183230175,-166.666666,0.00022269,2]
[340970580,1730183230197,-195.725082,0.00022756,2]
[340970581,1730183230220,-1539.45647005,0.00022987,2]
[340970582,1730183230242,-300.0,0.00022987,2]
[340970583,1730183230264,-18527.5392922,0.00022988,2]
[340970584,1730183232134,-896.03598652,0.00022988,2]
[340970585,1730183235087,-5476.42472128,0.00022988,2]
[340970586,1730183235112,-195.725082,0.00023349,2]
[340970587,1730183235134,-236.6,0.00023727,2]
[340970588,1730183235157,-166.666666,0.00023787,2]
[340970589,1730183235180,-383.545,0.00023877,5]
[340970590,1730183235203,-195.725082,0.00023942,2]
[340970591,1730183235225,-7644.53715452,0.00023983,2]
[340970592,1730183235247,-4863.88832199,0.0002399,2]
[340970593,1730183236084,-1635.29087275,0.0002399,2]
[340970594,1730183236106,-177.97757044,0.00024,2]
[340970595,1730183236129,-236.6,0.00024084,2]
[340970596,1730183236151,-500.0,0.00024117,2]
[340970597,1730183236175,-500.0,0.00024117,2]
[340970598,1730183236196,-500.0,0.00024117,2]
[340970599,1730183236218,-500.0,0.00024117,2]
[340970600,1730183236241,-500.0,0.00024117,2]
[340970601,1730183236265,-500.0,0.00024117,2]
[340970602,1730183236290,-274.22481562,0.00024117,2]
[340970603,1730183237109,-225.77518438,0.00024117,2]
[340970604,1730183237132,-304.34899097,0.00024117,2]
[340970605,1730183237153,-308.90053572,0.00024117,2]
[340970606,1730183237176,-500.0,0.00024117,2]
[340970607,1730183237291,-500.0,0.00024117,2]
[340970608,1730183237313,-500.0,0.00024117,2]
[340970609,1730183237336,-6499.17919474,0.00024118,2]
[340970610,1730183237357,-211.05244818,0.00024202,2]
[340970611,1730183237379,-150.0,0.00024202,2]
[340970612,1730183237399,-1140.544,0.00024202,2]
[340970613,1730183237421,-2396.0,0.00024202,2]
[340970614,1730183237442,-201.0,0.0002427,11]
[340970615,1730183237463,-236.6,0.00024442,2]
[340970616,1730183237485,-183.98228965,0.00024527,2]
[340970617,1730183237505,-183.98228965,0.0002453,2]
[340970618,1730183237526,-183.98228965,0.00024534,2]
[340970619,1730183237553,-1000.0,0.00024537,2]
[340970620,1730183237576,-183.98228965,0.00024537,2]
[340970621,1730183237596,-6499.17919476,0.00024608,2]
[340970622,1730183237617,-376.02,0.00024617,3]
[340970623,1730183237638,-188.01,0.00024617,3]
[340970624,1730183237659,-564.05,0.00024617,3]
[340970625,1730183237680,-258.31772243,0.00024626,2]
[340970626,1730183237702,-587.53483008,0.00024626,2]
[340970627,1730183237723,-174.61986865,0.00024626,2]
[340970628,1730183237746,-180.8224057,0.00024626,2]
[340970629,1730183237770,-273946.86297354,0.00024627,3]
[340970648,1730183318120,1212.13333245,0.00035491,30]
[340970650,1730183324221,169.46406765,0.000125,2]
[340970653,1730183367103,-156.0,0.00022,2]
[340970654,1730183367124,-787.77270494,0.0002201,16]
[340970655,1730183368101,-153.0,0.00022479,2]
[340970688,1730183432234,-167.084656,0.00023078,2]
[340970689,1730183432244,-300.0,0.00023099,2]
[340970690,1730183432254,-6543.18823632,0.000231,2]
[340970701,1730183438574,-2322.87677358,0.000231,2]
[340970702,1730183438586,-16033.9349901,0.000231,2]
[340970703,1730183438595,-149.999999,0.00023852,2]
[340970704,1730183438606,-1000.0,0.00024,120]
[340970705,1730183438616,-361.581,0.0002413,2]
[340970706,1730183438625,-3781.20606741,0.00024516,2]
[340970707,1730183439092,-2907.76394276,0.00024516,2]
[340970708,1730183439102,-1000.0,0.00024527,2]
[340970709,1730183439111,-188.01,0.00024607,3]
[340970710,1730183439120,-564.03,0.00024607,3]
[340970711,1730183439129,-256.54450397,0.00024616,2]
[340970712,1730183439138,-411.27438105,0.00024616,2]
[340970713,1730183439147,-211.05244819,0.00024616,2]
[340970714,1730183439158,-27629.40766933,0.00024617,3]
[340970715,1730183439521,-3352.47050829,0.00024617,3]
[340970748,1730183440330,-1044.8,0.00024617,3]
[340970775,1730183443272,-63931.06217728,0.00024617,3]
[340970776,1730183443281,-24275.92862793,0.00024617,3]
[340970782,1730183446406,-591.56591765,0.00024617,3]
[340971235,1730184447109,-167.0,0.00022,2]
[340971236,1730184447131,-167.084656,0.00022357,2]
[340971237,1730184447153,-300.0,0.00022743,2]
[340971238,1730184447175,-493.94968538,0.00022744,2]
[340971261,1730184632437,-125.33714904,0.00022743,2]
[340971262,1730184632449,-174.66285096,0.00022743,2]
[340971263,1730184632460,-300.0,0.00022743,2]
[340971264,1730184632469,-81.4122901,0.00022744,2]
[340971265,1730184632481,-4270.75024721,0.00022744,2]
[340971266,1730184632492,-20053.88777731,0.00022744,2]
[340971267,1730184632503,-1502.7798739,0.0002276,2]
[340971268,1730184632514,-167.622199,0.00022959,2]
[340971269,1730184632524,-167.622199,0.00023198,2]
[340971270,1730184632533,-167.622199,0.00023437,2]
[340971271,1730184632543,-167.622199,0.00023676,2]
[340971272,1730184632552,-177.5,0.00023744,2]
[340971273,1730184632562,-167.622199,0.00023916,2]
[340971274,1730184632571,-306.836,0.00023967,5]
[340971275,1730184632581,-177.5,0.000241,2]
[340971276,1730184632590,-167.622199,0.00024155,2]
[340971277,1730184632722,-465.33382055,0.000243,2]
[340971278,1730184632732,-5852.84875889,0.00024356,2]
[340971279,1730184632743,-210.8524058,0.000244,2]
[340971280,1730184632754,-196.75717622,0.00024426,2]
[340971281,1730184632764,-3167.08122077,0.00024426,2]
[340971283,1730184638649,-6955.50326467,0.00024426,2]
[340971284,1730184638661,-694.57365297,0.00024426,2]
[340971285,1730184638732,-4025.44601597,0.00024426,2]
[340971305,1730184640585,-9345.72240789,0.00024426,2]
[340971315,1730184640673,-3467.01677445,0.00024426,2]
[340971317,1730184640683,-177.5,0.00024456,2]
[340971319,1730184640692,-480.99639419,0.00024537,2]
[340971321,1730184640702,-150.112233,0.000246,6]
[340971322,1730184640712,-150.112233,0.000246,6]
[340971323,1730184640722,-289.292122,0.000246,8]
[340971324,1730184640731,-4914.82624286,0.00024606,3]
[340971379,1730184646377,185.0,0.00022,2]
[340971381,1730184646492,-3567.05,0.00024606,3]
[340971383,1730184646714,185.0,0.00022192,2]
[340971506,1730185019696,2000.0,0.0003547,30]
[340971519,1730185196572,1000.0,0.00035477,30]
[340971520,1730185196836,1000.0,0.00035477,30]
[340971521,1730185197566,1000.0,0.00035477,30]
[340971522,1730185197794,1000.0,0.00035477,30]
[340971523,1730185198155,2000.0,0.00035477,30]
[340971524,1730185245290,600.0,0.00035477,30]
[340971531,1730185647135,-344.332,0.0002282,2]
[340971532,1730185647157,-176.503452,0.00023263,2]
[340971533,1730185647180,-300.0,0.00023464,2]
[340971534,1730185647203,-300.0,0.00023464,2]
[340971535,1730185647226,-24900.0,0.00023465,2]
[340971536,1730185647249,-245.469,0.00023968,5]
[340971537,1730185647271,-151.0,0.00024456,2]
[340971538,1730185647293,-1000.0,0.00024547,2]
[340971539,1730185647314,-712.24,0.00024636,3]
[340971540,1730185647336,-287.89206674,0.00024645,2]
[340971541,1730185647361,-196.75717622,0.00024645,2]
[340971542,1730185647384,-99699.83580772,0.00024646,3]
[340971553,1730185754092,2000.0,0.00035477,30]
[340971554,1730185754421,2000.0,0.00035477,30]
[340971555,1730185754760,2000.0,0.00035477,30]
[340971556,1730185755091,2000.0,0.00035477,30]
[340971557,1730185755397,2000.0,0.00035477,30]
[340971617,1730185832684,-5121.24266402,0.00024536,2]
[340971618,1730185832694,-300.0,0.00024609,2]
[340971619,1730185832704,-300.0,0.00024609,2]
[340971621,1730185832713,-15568.54106243,0.0002461,2]
[340971622,1730185832722,-4710.21627355,0.00024636,3]
[340971623,1730185832734,-671.33001715,0.00024636,3]
[340971626,1730185838860,-3484.78714352,0.00024636,3]
[340971627,1730185839051,-14257.11438919,0.00024636,3]
[340971628,1730185839068,-1585.33183703,0.00024636,3]
[340971629,1730185839101,-6006.60950996,0.00024636,3]
[340971630,1730185839114,-1486.0504852,0.00024636,3]
[340971631,1730185839128,-92146.1675112,0.00024637,3]
[340971632,1730185839142,-4458.1514556,0.00024637,3]
[340971633,1730185839156,-17839.73712754,0.00024646,3]
[340971643,1730185846585,-2707.39540305,0.00024646,3]
[340971688,1730186970143,-331.9318938,0.00022219,2]
[340971689,1730186970166,-500.0,0.00022219,2]
[340971690,1730186970188,-471.24733465,0.00022219,2]
[340971691,1730186970209,-300.0,0.00022219,2]
[340971692,1730186970230,-300.0,0.00022219,2]
[340971693,1730186970251,-62777.67790852,0.0002222,8]
[340971717,1730187031982,-300.0,0.00023317,2]
[340971718,1730187031992,-300.0,0.00023317,2]
[340971719,1730187032002,-24900.0,0.00023318,2]
[340971720,1730187032011,-160.860241,0.00023487,2]
[340971721,1730187032021,-160.860241,0.00023563,2]
[340971722,1730187032030,-160.860241,0.0002364,2]
[340971723,1730187032039,-160.860241,0.00023716,2]
[340971724,1730187032048,-160.860241,0.00023793,2]
[340971725,1730187032058,-327.949,0.000238,2]
[340971726,1730187032067,-999.99999901,0.00023852,2]
[340971727,1730187032077,-160.860241,0.00023869,2]
[340971728,1730187032086,-160.860241,0.00023946,2]
[340971729,1730187032096,-153.0,0.00023973,2]
[340971730,1730187032105,-196.375,0.00023973,5]
[340971731,1730187032115,-153.0,0.00024,2]
[340971732,1730187032124,-153.0,0.00024,2]
[340971733,1730187032133,-153.0,0.00024,2]
[340971734,1730187032143,-160.860241,0.00024022,2]
[340971735,1730187032152,-160.860241,0.00024099,2]
[340971736,1730187032161,-160.860241,0.00024175,2]
[340971737,1730187032170,-465.01669103,0.00024239,2]
[340971738,1730187032179,-160.860241,0.00024252,2]
[340971739,1730187032188,-160.860241,0.00024328,2]
[340971740,1730187032197,-160.860241,0.00024405,2]
[340971741,1730187032208,-160.860241,0.00024481,2]
[340971742,1730187032217,-1000.0,0.00024547,2]
[340971743,1730187032226,-160.860241,0.00024558,2]
[340971744,1730187032236,-150.0,0.000246,2]
[340971745,1730187032246,-160.860241,0.00024634,2]
[340971746,1730187032255,-178.40017413,0.00024635,2]
[340971747,1730187032264,-12720.43564522,0.00024635,3]
[340971771,1730187180343,1306.113598,0.00035467,30]
[340971798,1730187547085,178.3412509,0.00013973,2]
[340971809,1730188034150,-165.0,0.00022,2]
[340971810,1730188034173,-159.108119,0.00022795,2]
[340971811,1730188034196,-159.108119,0.00022865,2]
[340971812,1730188034219,-159.108119,0.00022935,2]
[340971813,1730188034242,-159.108119,0.00023005,2]
[340971814,1730188034264,-159.108119,0.00023075,2]
[340971815,1730188034287,-159.108119,0.00023145,2]
[340971816,1730188034309,-300.0,0.00023214,2]
[340971817,1730188034332,-300.0,0.00023214,2]
[340971818,1730188034355,-159.108119,0.00023215,2]
[340971819,1730188034378,-24900.0,0.00023215,2]
[340971820,1730188034522,-206.38594604,0.00023218,2]
[340971821,1730188034549,-159.108119,0.00023285,2]
[340971822,1730188034573,-159.108119,0.00023354,2]
[340971823,1730188034598,-159.108119,0.00023424,2]
[340971824,1730188034621,-159.108119,0.00023494,2]
[340971825,1730188034644,-159.108119,0.00023564,2]
[340971826,1730188034668,-159.108119,0.00023634,2]
[340971827,1730188034690,-159.108119,0.00023704,2]
[340971828,1730188034712,-159.108119,0.00023774,2]
[340971829,1730188034736,-159.108119,0.00023843,2]
[340971830,1730188034758,-309.7227447,0.00023878,2]
[340971831,1730188034780,-159.108119,0.00023913,2]
[340971832,1730188034802,-159.108119,0.00023983,2]
[340971833,1730188034823,-6668.95919474,0.00024025,2]
[340971834,1730188034845,-5859.65117138,0.00024061,2]
[340971835,1730188034865,-151.0,0.00024164,2]
[340971836,1730188034885,-150.0,0.00024201,2]
[340971837,1730188034905,-1140.544,0.00024201,2]
[340971838,1730188034925,-2396.0,0.00024201,2]
[340971839,1730188034947,-500.0,0.0002424,2]
[340971840,1730188034968,-500.0,0.0002424,2]
[340971841,1730188034991,-304.34899097,0.0002424,2]
[340971842,1730188035012,-534.6757201,0.0002424,2]
[340971843,1730188035035,-500.0,0.0002424,2]
[340971844,1730188035056,-6668.95919474,0.00024241,2]
[340971845,1730188035078,-195.35789301,0.00024284,2]
[340971846,1730188035100,-157.1,0.0002438,6]
[340971847,1730188035123,-153.0,0.0002438,2]
[340971848,1730188035144,-153.0,0.0002438,2]
[340971849,1730188035164,-153.0,0.000244,2]
[340971850,1730188035185,-153.0,0.000244,2]
[340971851,1730188035206,-153.0,0.000244,2]
[340971852,1730188035226,-153.0,0.000244,2]
[340971853,1730188035246,-153.0,0.000244,2]
[340971854,1730188035268,-13184.51205498,0.00024411,2]
[340971855,1730188035289,-306.0,0.000245,2]
[340971856,1730188035310,-151.4061407,0.000245,2]
[340971857,1730188035332,-151.0,0.00024514,2]
[340971858,1730188035352,-183.98228965,0.00024516,2]
[340971859,1730188035374,-183.98228965,0.00024529,2]
[340971860,1730188035395,-312.262,0.0002454,2]
[340971861,1730188035416,-183.98228965,0.00024543,2]
[340971862,1730188035437,-1000.0,0.00024547,2]
[340971863,1730188035458,-183.98228965,0.00024556,2]
[340971864,1730188035479,-150.112234,0.000246,8]
[340971865,1730188035501,-188.01,0.00024605,3]
[340971866,1730188035522,-564.05,0.00024605,3]
[340971867,1730188035546,-37451.6375206,0.00024615,3]
[340971868,1730188035570,-1473.976325,0.00024615,3]
[340971869,1730188035596,-467.63913936,0.00024616,2]
[340971870,1730188035617,-174.61986865,0.00024616,2]
[340971871,1730188035639,-151.0,0.00024616,7]
[340971872,1730188035660,-151.0,0.00024616,7]
[340971873,1730188035682,-151.0,0.00024616,7]
[340971874,1730188035704,-151.0,0.00024616,7]
[340971875,1730188035725,-151.0,0.00024616,7]
[340971876,1730188035746,-209.569786,0.00024616,7]
[340971877,1730188035768,-209.569786,0.00024616,7]
[340971878,1730188035788,-232.566056,0.00024616,7]
[340971879,1730188035812,-102165.76491618,0.00024617,3]
[340971884,1730188115699,417.0,0.00035477,30]
[340971885,1730188116066,435.0,0.00035477,30]
[340971886,1730188116561,453.0,0.00035477,30]
[340971887,1730188116949,472.0,0.00035477,30]
[340971888,1730188117367,491.0,0.00035477,30]
[340971889,1730188117682,512.0,0.00035477,30]
[340971890,1730188118002,533.0,0.00035477,30]
[340971891,1730188118390,647.0,0.00035477,30]
[340971892,1730188118749,701.0,0.00035477,30]
[340971893,1730188119241,759.0,0.00035477,30]
[340971894,1730188119620,822.0,0.00035477,30]
[340971895,1730188120026,446.0,0.00035477,30]
[340971896,1730188120758,464.0,0.00035477,30]
[340971897,1730188121073,484.0,0.00035477,30]
[340971898,1730188121372,504.0,0.00035477,30]
[340971899,1730188121672,525.0,0.00035477,30]
[340971900,1730188121978,547.0,0.00035477,30]
[340971901,1730188122355,569.0,0.00035477,30]
[340971903,1730188126062,219.0,0.00035477,30]
[340971969,1730188232018,-300.0,0.0002363,2]
[340971971,1730188232027,-300.0,0.0002363,2]
[340971973,1730188232037,-10072.6768692,0.00023631,2]
[340971974,1730188232045,-297.415,0.0002454,2]
[340971976,1730188232055,-1000.0,0.00024557,2]
[340971978,1730188232065,-151.0,0.00024616,7]
[340971979,1730188232074,-242.022213,0.00024616,7]
[340971981,1730188232084,-242.022213,0.00024616,7]